fUSD/lending_fUSD_20251223
["ID","MTS","AMOUNT","RATE_DAILY","PERIOD"]
[399591021,1766525661555,-718.88,0.00042708,120]
[399591022,1766525661596,-500.0,0.00042708,120]
[399591023,1766525661636,-718.88,0.00042708,120]
[399591024,1766525661676,-500.0,0.00042708,120]
[399591025,1766525661716,-718.88,0.00042708,120]
[399591026,1766525661756,-500.0,0.00042708,120]
[399591027,1766525661813,-718.88,0.00042708,120]
[399591028,1766525661855,-500.0,0.00042708,120]
[399591029,1766525661894,-500.0,0.00042708,120]
[399591030,1766525661933,-500.0,0.00042708,120]
[399591031,1766525661971,-500.0,0.00042708,120]
[399591032,1766525662012,-718.88,0.00042708,120]
[399591033,1766525662054,-500.0,0.00042708,120]
[399591034,1766525662095,-490.99913747,0.00042708,120]
[399591035,1766525662137,-500.0,0.00042708,120]
[399591036,1766525662182,-718.88,0.00042708,120]
[399591037,1766525662226,-500.0,0.00042708,120]
[399591038,1766525662269,-500.0,0.00042708,120]
[399591039,1766525662312,-500.0,0.00042708,120]
[399591040,1766525662355,-718.88,0.00042708,120]
[399591041,1766525662406,-500.0,0.00042708,120]
[399591042,1766525662451,-500.0,0.00042708,120]
[399591043,1766525662495,-500.0,0.00042708,120]
[399591044,1766525662538,-718.88,0.00042708,120]
[399591045,1766525662580,-500.0,0.00042708,120]
[399591046,1766525662622,-500.0,0.00042708,120]
[399591047,1766525662664,-500.0,0.00042708,120]
[399591048,1766525662710,-718.88,0.00042708,120]
[399591049,1766525662758,-500.0,0.00042708,120]
[399591050,1766525662815,-500.0,0.00042708,120]
[399591051,1766525662860,-500.0,0.00042708,120]
[399591052,1766525662900,-718.88,0.00042708,120]
[399591053,1766525662937,-500.0,0.00042708,120]
[399591054,1766525662977,-500.0,0.00042708,120]
[399591055,1766525663024,-500.0,0.00042708,120]
[399591056,1766525663071,-718.88,0.00042708,120]
[399591057,1766525663119,-500.0,0.00042708,120]
[399591058,1766525663165,-488.14304846,0.00042708,120]
[399591059,1766525663212,-500.0,0.00042708,120]
[399591060,1766525663262,-718.88,0.00042708,120]
[399591061,1766525663308,-500.0,0.00042708,120]
[399591062,1766525663355,-500.0,0.00042708,120]
[399591063,1766525663399,-500.0,0.00042708,120]
[399591064,1766525663442,-718.88,0.00042708,120]
[399591065,1766525663485,-500.0,0.00042708,120]
[399591066,1766525663524,-500.0,0.00042708,120]
[399591067,1766525663563,-500.0,0.00042708,120]
[399591068,1766525663604,-718.88,0.00042708,120]
[399591069,1766525663643,-500.0,0.00042708,120]
[399591070,1766525663692,-500.0,0.00042708,120]
[399591071,1766525663735,-511.7143834,0.00042708,120]
[399591072,1766525663779,-718.88,0.00042708,120]
[399591073,1766525663824,-547.53496925,0.00042708,120]
[399591074,1766525663871,-500.0,0.00042708,120]
[399591075,1766525663915,-718.88,0.00042708,120]
[399591076,1766525663959,-330.21,0.00042708,120]
[399591077,1766525664004,-718.88,0.00042708,120]
[399591078,1766525664049,-719.07,0.00042708,120]
[399591079,1766525664095,-384.17014638,0.00042708,120]
[399591080,1766525664139,-500.0,0.00042708,120]
[399591081,1766525664184,-500.0,0.00042708,120]
[399591082,1766525664230,-500.0,0.00042708,120]
[399591083,1766525664280,-500.0,0.00042708,120]
[399591084,1766525664329,-500.0,0.00042708,120]
[399591085,1766525664373,-500.0,0.00042708,120]
[399591086,1766525664414,-500.0,0.00042708,120]
[399591087,1766525664453,-500.0,0.00042708,120]
[399591088,1766525664491,-481.72477396,0.00042708,120]
[399591089,1766525664529,-500.0,0.00042708,120]
[399591090,1766525664568,-500.0,0.00042708,120]
[399591091,1766525664606,-409.42019454,0.00042708,120]
[399591092,1766525664644,-512.04669456,0.00042708,120]
[399591093,1766525664683,-500.0,0.00042708,120]
[399591094,1766525664721,-500.0,0.00042708,120]
[399591095,1766525664761,-521.8344441,0.00042708,120]
[399591096,1766525664800,-500.0,0.00042708,120]
[399591097,1766525664838,-528.37135446,0.00042708,120]
[399591098,1766525664878,-500.0,0.00042708,120]
[399591099,1766525664922,-500.0,0.00042708,120]
[399591100,1766525664963,-500.0,0.00042708,120]
[399591101,1766525665007,-500.0,0.00042708,120]
[399591102,1766525665052,-500.0,0.00042708,120]
[399591103,1766525665098,-500.0,0.00042708,120]
[399591104,1766525665140,-500.0,0.00042708,120]
[399591105,1766525665583,-500.0,0.00042708,120]
[399591106,1766525665630,-500.0,0.00042708,120]
[399591107,1766525665673,-500.0,0.00042708,120]
[399591108,1766525665715,-500.0,0.00042708,120]
[399591109,1766525665759,-500.0,0.00042708,120]
[399591110,1766525665803,-500.0,0.00042708,120]
[399591111,1766525665845,-500.0,0.00042708,120]
[399591112,1766525665886,-538.34102592,0.00042708,120]
[399591113,1766525665926,-500.0,0.00042708,120]
[399591114,1766525665965,-500.0,0.00042708,120]
[399591115,1766525666006,-244.88884223,0.00042708,120]
[399591116,1766525666048,-500.0,0.00042708,120]
[399591117,1766525666096,-500.0,0.00042708,120]
[399591118,1766525666141,-500.0,0.00042708,120]
[399591119,1766525666186,-2387.11,0.00042708,120]
[399591120,1766525666230,-500.0,0.00042708,120]
[399591121,1766525666273,-520.96728248,0.00042708,120]
[399591122,1766525666316,-500.0,0.00042708,120]
[399591123,1766525666361,-2387.11,0.00042708,120]
[399591124,1766525666406,-528.13741115,0.00042708,120]
[399591125,1766525666450,-484.58013822,0.00042708,120]
[399591126,1766525666493,-2387.11,0.00042708,120]
[399591127,1766525666532,-500.0,0.00042708,120]
[399591128,1766525666572,-2387.11,0.00042708,120]
[399591129,1766525666613,-500.0,0.00042708,120]
[399591130,1766525666652,-2387.11,0.00042708,120]
[399591131,1766525666691,-500.0,0.00042708,120]
[399591132,1766525666738,-2387.11,0.00042708,120]
[399591133,1766525666778,-500.0,0.00042708,120]
[399591134,1766525666822,-2387.11,0.00042708,120]
[399591135,1766525666866,-500.0,0.00042708,120]
[399591136,1766525666908,-2387.11,0.00042708,120]
[399591137,1766525666948,-500.0,0.00042708,120]
[399591138,1766525666991,-2387.11,0.00042708,120]
[399591139,1766525667032,-500.0,0.00042708,120]
[399591140,1766525667074,-500.0,0.00042708,120]
[399591141,1766525667121,-500.0,0.00042708,120]
[399591142,1766525667168,-2387.11,0.00042708,120]
[399591143,1766525667216,-500.0,0.00042708,120]
[399591144,1766525667270,-511.85274047,0.00042708,120]
[399591145,1766525667325,-2387.11,0.00042708,120]
[399591146,1766525667376,-500.0,0.00042708,120]
[399591147,1766525667423,-500.0,0.00042708,120]
[399591148,1766525667469,-500.0,0.00042708,120]
[399591149,1766525667513,-2387.11,0.00042708,120]
[399591150,1766525667556,-503.41528638,0.00042708,120]
[399591151,1766525667600,-500.0,0.00042708,120]
[399591152,1766525667647,-2387.11,0.00042708,120]
[399591153,1766525667691,-500.0,0.00042708,120]
[399591154,1766525667735,-500.0,0.00042708,120]
[399591155,1766525667780,-2387.11,0.00042708,120]
[399591156,1766525667825,-2387.11,0.00042708,120]
[399591157,1766525667869,-228.8879037,0.00042708,120]
[399591158,1766525667911,-500.0,0.00042708,120]
[399591159,1766525667954,-512.81882727,0.00042708,120]
[399591160,1766525668002,-2387.11,0.00042708,120]
[399591161,1766525668046,-500.0,0.00042708,120]
[399591162,1766525668091,-2387.11,0.00042708,120]
[399591163,1766525668135,-504.00743944,0.00042708,120]
[399591164,1766525668180,-2387.11,0.00042708,120]
[399591165,1766525668227,-2387.11,0.00042708,120]
[399591166,1766525668273,-520.89890137,0.00042708,120]
[399591167,1766525668317,-500.0,0.00042708,120]
[399591168,1766525668361,-500.0,0.00042708,120]
[399591169,1766525668407,-2387.11,0.00042708,120]
[399591170,1766525668455,-2387.11,0.00042708,120]
[399591171,1766525668497,-500.0,0.00042708,120]
[399591172,1766525668538,-500.0,0.00042708,120]
[399591173,1766525668579,-500.0,0.00042708,120]
[399591174,1766525668618,-500.0,0.00042708,120]
[399591175,1766525668657,-2387.11,0.00042708,120]
[399591176,1766525668697,-500.0,0.00042708,120]
[399591177,1766525668735,-500.0,0.00042708,120]
[399591178,1766525668772,-500.0,0.00042708,120]
[399591179,1766525668811,-537.59633374,0.00042708,120]
[399591180,1766525668850,-2387.11,0.00042708,120]
[399591181,1766525668887,-500.0,0.00042708,120]
[399591182,1766525668924,-500.0,0.00042708,120]
[399591183,1766525668962,-2387.19057848,0.00042708,120]
[399591184,1766525669000,-508.54276073,0.00042708,120]
[399591185,1766525669037,-570.99,0.00042708,120]
[399591186,1766525669075,-562.82078809,0.00042708,120]
[399591187,1766525669112,-500.0,0.00042708,120]
[399591188,1766525669152,-570.99,0.00042708,120]
[399591189,1766525669193,-500.0,0.00042708,120]
[399591190,1766525669235,-570.99,0.00042708,120]
[399591191,1766525669281,-500.0,0.00042708,120]
[399591192,1766525669323,-500.0,0.00042708,120]
[399591193,1766525669364,-570.99,0.00042708,120]
[399591194,1766525669405,-506.28268328,0.00042708,120]
[399591195,1766525669446,-500.0,0.00042708,120]
[399591196,1766525669485,-500.0,0.00042708,120]
[399591197,1766525669521,-500.0,0.00042708,120]
[399591198,1766525669556,-570.99,0.00042708,120]
[399591199,1766525669893,-500.0,0.00042708,120]
[399591200,1766525669935,-570.99,0.00042708,120]
[399591201,1766525669972,-500.0,0.00042708,120]
[399591202,1766525670011,-500.0,0.00042708,120]
[399591203,1766525670049,-570.99,0.00042708,120]
[399591204,1766525670087,-633.4,0.00042708,120]
[399591205,1766525670126,-500.0,0.00042708,120]
[399591206,1766525670168,-500.0,0.00042708,120]
[399591207,1766525670210,-570.99,0.00042708,120]
[399591208,1766525670251,-633.4,0.00042708,120]
[399591209,1766525670294,-500.0,0.00042708,120]
[399591210,1766525670336,-500.0,0.00042708,120]
[399591211,1766525670376,-570.99,0.00042708,120]
[399591212,1766525670418,-633.4,0.00042708,120]
[399591213,1766525670459,-570.99,0.00042708,120]
[399591214,1766525670502,-500.0,0.00042708,120]
[399591215,1766525670543,-500.0,0.00042708,120]
[399591216,1766525670583,-633.4,0.00042708,120]
[399591217,1766525670623,-500.0,0.00042708,120]
[399591218,1766525670663,-500.0,0.00042708,120]
[399591219,1766525670702,-570.99,0.00042708,120]
[399591220,1766525670741,-633.4,0.00042708,120]
[399591221,1766525670777,-377.78439954,0.00042708,120]
[399591222,1766525670816,-570.99,0.00042708,120]
[399591223,1766525670853,-304.66464829,0.00042708,120]
[399591224,1766525670888,-518.94711462,0.00042708,120]
[399591225,1766525670923,-633.4,0.00042708,120]
[399591226,1766525670958,-570.99,0.00042708,120]
[399591227,1766525670993,-633.4,0.00042708,120]
[399591228,1766525671028,-570.99,0.00042708,120]
[399591229,1766525671063,-633.4,0.00042708,120]
[399591230,1766525671099,-570.99,0.00042708,120]
[399591231,1766525671136,-633.4,0.00042708,120]
[399591232,1766525671178,-570.99,0.00042708,120]
[399591233,1766525671217,-633.4,0.00042708,120]
[399591234,1766525671256,-500.0,0.00042708,120]
[399591235,1766525671295,-570.99,0.00042708,120]
[399591236,1766525671333,-633.4,0.00042708,120]
[399591237,1766525671372,-500.0,0.00042708,120]
[399591238,1766525671411,-570.99,0.00042708,120]
[399591239,1766525671448,-633.4,0.00042708,120]
[399591240,1766525671484,-500.0,0.00042708,120]
[399591241,1766525671520,-633.4,0.00042708,120]
[399591242,1766525671555,-519.91320169,0.00042708,120]
[399591243,1766525671589,-570.99,0.00042708,120]
[399591244,1766525671623,-633.4,0.00042708,120]
[399591245,1766525671659,-570.99,0.00042708,120]
[399591246,1766525671695,-633.4,0.00042708,120]
[399591247,1766525671730,-513.81301456,0.00042708,120]
[399591248,1766525671767,-570.99,0.00042708,120]
[399591249,1766525671805,-633.4,0.00042708,120]
[399591250,1766525671842,-570.99,0.00042708,120]
[399591251,1766525671879,-633.4,0.00042708,120]
[399591252,1766525671914,-570.99,0.00042708,120]
[399591253,1766525671949,-633.4,0.00042708,120]
[399591254,1766525671985,-571.18601113,0.00042708,120]
[399591255,1766525672024,-633.4,0.00042708,120]
[399591256,1766525672063,-500.0,0.00042708,120]
[399591257,1766525672103,-633.4,0.00042708,120]
[399591258,1766525672145,-500.0,0.00042708,120]
[399591259,1766525672188,-633.4,0.00042708,120]
[399591260,1766525672233,-500.0,0.00042708,120]
[399591261,1766525672278,-633.4,0.00042708,120]
[399591262,1766525672323,-500.0,0.00042708,120]
[399591263,1766525672367,-633.4,0.00042708,120]
[399591264,1766525672411,-521.93253937,0.00042708,120]
[399591265,1766525672453,-500.0,0.00042708,120]
[399591266,1766525672495,-633.58528158,0.00042708,120]
[399591267,1766525672535,-237.21252236,0.00042708,120]
[399591268,1766525672574,-500.0,0.00042708,120]
[399591269,1766525672613,-500.0,0.00042708,120]
[399591270,1766525672653,-500.0,0.00042708,120]
[399591271,1766525672691,-500.0,0.00042708,120]
[399591272,1766525672729,-500.0,0.00042708,120]
[399591273,1766525672768,-500.0,0.00042708,120]
[399591274,1766525672807,-500.0,0.00042708,120]
[399591275,1766525672845,-502.36757539,0.00042708,120]
[399591276,1766525672883,-500.0,0.00042708,120]
[399591277,1766525672919,-500.0,0.00042708,120]
[399591278,1766525672957,-500.0,0.00042708,120]
[399591279,1766525672996,-500.0,0.00042708,120]
[399591280,1766525673036,-500.0,0.00042708,120]
[399591281,1766525673082,-500.0,0.00042708,120]
[399591282,1766525673126,-500.0,0.00042708,120]
[399591283,1766525673172,-500.0,0.00042708,120]
[399591284,1766525673217,-500.0,0.00042708,120]
[399591285,1766525673265,-403.6566537,0.00042708,120]
[399591286,1766525673312,-500.0,0.00042708,120]
[399591287,1766525673357,-624.82716116,0.00042708,120]
[399591288,1766525673402,-500.0,0.00042708,120]
[399591289,1766525673445,-500.0,0.00042708,120]
[399591290,1766525673488,-500.0,0.00042708,120]
[399591291,1766525673529,-500.0,0.00042708,120]
[399591292,1766525673574,-500.0,0.00042708,120]
[399591293,1766525673613,-501.97882815,0.00042708,120]
[399591294,1766525673881,-500.0,0.00042708,120]
[399591295,1766525673923,-507.07500731,0.00042708,120]
[399591296,1766525673962,-500.0,0.00042708,120]
[399591297,1766525674000,-412.4714162,0.00042708,120]
[399591298,1766525680304,5942.59475964,0.00014925,2]
[399591299,1766525681650,500.0,0.00015024,2]
[399591300,1766525681696,311.80858285,0.00015024,2]
[399591301,1766525681723,39.95578844,0.00015024,2]
[399591302,1766525682658,-497.55228091,0.00015025,2]
[399591303,1766525682670,-1147.39913106,0.00015025,2]
[399591304,1766525682690,-387.105,0.00015025,2]
[399591305,1766525682702,-560.40211585,0.00015025,2]
[399591306,1766525682717,-4911.49051634,0.00015025,2]
[399591307,1766525682729,-2075.77743633,0.00015025,2]
[399591308,1766525682741,-1432.49858027,0.00015025,2]
[399591309,1766525682752,-7103.92039378,0.00015025,2]
[399591310,1766525682766,-549447.01798524,0.00015025,2]
[399591311,1766525682778,-13179.60202976,0.00015025,2]
[399591312,1766525682790,-659.1457183,0.00015025,2]
[399591313,1766525682803,-4241.55482183,0.00015025,2]
[399591314,1766525682816,-28469.48462922,0.00015025,2]
[399591315,1766525682827,-4900.2279375,0.00015025,2]
[399591316,1766525682840,-606.48713533,0.00015025,2]
[399591317,1766525683202,-261.039,0.00015025,2]
[399591318,1766525683215,-7073.51683908,0.00015025,2]
[399591319,1766525683227,-220910.80909017,0.00015025,2]
[399591320,1766525683239,-500.0,0.00015025,2]
[399591321,1766525683249,-250.0,0.00015025,2]
[399591322,1766525683260,-209.08747148,0.00015025,2]
[399591323,1766525683279,-193.0,0.00015025,2]
[399591324,1766525683297,-1102.34063428,0.00015025,2]
[399591325,1766525683308,-275.0,0.00015025,2]
[399591326,1766525683318,-390.91252852,0.00015125,2]
[399591327,1766525683327,-4907.7305343,0.00015125,2]
[399591328,1766525683337,-267.3551449,0.00015125,2]
[399591329,1766525683346,-5942.59475962,0.00015144,2]
[399591330,1766525683356,-500.0,0.00015173,2]
[399591331,1766525683366,-500.0,0.00015173,2]
[399591332,1766525683376,-175.03195299,0.00015224,2]
[399591333,1766525683387,-19409.01575177,0.00015225,2]
[399591334,1766525683397,-500.0,0.00015324,2]
[399591335,1766525683407,-500.0,0.00015324,2]
[399591336,1766525683418,-500.0,0.00015324,2]
[399591337,1766525683428,-500.0,0.00015324,2]
[399591338,1766525683439,-5942.59475962,0.00015364,2]
[399591339,1766525683448,-367.88,0.00015398,2]
[399591340,1766525683459,-5942.59475962,0.00015583,2]
[399591341,1766525683468,-367.88,0.00015672,2]
[399591342,1766525683479,-600.0,0.00015673,2]
[399591343,1766525683490,-200.0,0.00015714,2]
[399591344,1766525683501,-1000.0,0.00015721,2]
[399591345,1766525683511,-734.29564622,0.00015721,2]
[399591346,1766525683523,-5942.59475962,0.00015803,2]
[399591347,1766525683533,-367.88,0.00015946,2]
[399591348,1766525683544,-209.08747148,0.00015963,2]
[399591349,1766525683553,-999.0,0.00015998,3]
[399591350,1766525683563,-43075.79939415,0.00016,4]
[399591351,1766525683573,-510.0,0.00016151,2]
[399591352,1766525683584,-69861.72249964,0.000162,5]
[399591353,1766525683594,-367.9,0.0001622,2]
[399591354,1766525683604,-600.0,0.00016221,2]
[399591355,1766525683614,-200.0,0.0001634,2]
[399591356,1766525683625,-500.0,0.00016438,2]
[399591357,1766525683635,-462.52443725,0.00016438,2]
[399591358,1766525683646,-500.0,0.00016438,2]
[399591359,1766525683656,-500.0,0.00016438,2]
[399591360,1766525683667,-500.0,0.00016438,2]
[399591361,1766525683678,-500.0,0.00016438,2]
[399591362,1766525683688,-800.0,0.00016438,2]
[399591363,1766525683698,-420.0,0.00016442,2]
[399591364,1766525683709,-1680.0,0.00016526,2]
[399591365,1766525683719,-250.0,0.00016527,2]
[399591366,1766525683729,-250.0,0.00016527,2]
[399591367,1766525683743,-151.0,0.00016675,2]
[399591368,1766525683761,-600.0,0.00016769,2]
[399591369,1766525683774,-209.08747148,0.000169,2]
[399591370,1766525683784,-267.74550045,0.000169,2]
[399591371,1766525683795,-184.99945595,0.000169,2]
[399591372,1766525683804,-627.84695606,0.000169,2]
[399591373,1766525683815,-549.10984818,0.000169,2]
[399591374,1766525683825,-500.0,0.00016973,2]
[399591375,1766525683836,-150.0,0.00016973,2]
[399591376,1766525683847,-25139.28,0.00016986,2]
[399591377,1766525683856,-300.0,0.00016999,2]
[399591378,1766525683867,-666.0,0.00016999,2]
[399591379,1766525683877,-2215.96882137,0.00016999,2]
[399591380,1766525683888,-500.0,0.00016999,2]
[399591381,1766525683898,-500.0,0.00016999,2]
[399591382,1766525683907,-500.0,0.00016999,2]
[399591383,1766525683917,-500.0,0.00016999,2]
[399591384,1766525683927,-500.0,0.00016999,2]
[399591385,1766525683937,-327.59345586,0.00016999,2]
[399591386,1766525683947,-500.0,0.00016999,2]
[399591387,1766525683957,-355.12912067,0.00016999,2]
[399591388,1766525683967,-500.0,0.00016999,2]
[399591389,1766525683977,-451.67586596,0.00016999,2]
[399591390,1766525683986,-275.88604923,0.00016999,2]
[399591391,1766525683998,-193.12023446,0.00016999,2]
[399591392,1766525684008,-250.0,0.00017,2]
[399591393,1766525684017,-1792753.6994552,0.00017,2]
[399591394,1766525684030,-987.26151288,0.00017,2]
[399591395,1766525684048,-2138.23077622,0.00017,2]
[399591396,1766525684060,-48304.09585137,0.00017,2]
[399591397,1766525684073,-12018.8488185,0.00017,2]
[399591398,1766525684085,-25897.12525275,0.00017,2]
[399591399,1766525684128,151.32829352,0.00014925,2]
[399591400,1766525684267,-322912.35115137,0.00017,2]
[399591401,1766525684279,-417995.86630646,0.00017,2]
[399591402,1766525684291,-401.780011,0.00017,2]
[399591403,1766525684311,-1872.04,0.00017,2]
[399591404,1766525684327,-449.495,0.00017,2]
[399591405,1766525684338,-2877.10776756,0.00017,2]
[399591406,1766525685803,-1.7e-07,0.00017,2]
[399591407,1766525685818,-290.80846488,0.00017,2]
[399591408,1766525685832,-573.41328254,0.00017,2]
[399591409,1766525685846,-373076.72426691,0.00017,2]
[399591410,1766525685856,-778.34455082,0.00017,2]
[399591411,1766525685866,-1053380.25098236,0.00017,2]
[399591412,1766525685876,-151.0,0.00017,2]
[399591413,1766525685886,-500.0,0.00017,2]
[399591414,1766525685895,-151.0,0.00017,2]
[399591415,1766525685906,-3185.1773795,0.00017047,2]
[399591416,1766525685916,-1095.0627,0.00017048,2]
[399591417,1766525685926,-427.0,0.00017053,2]
[399591418,1766525685936,-150.0,0.00017099,2]
[399591419,1766525685945,-427.0,0.00017229,2]
[399591420,1766525685955,-427.0,0.00017251,2]
[399591421,1766525685964,-174.29,0.00017257,2]
[399591422,1766525685975,-500.0,0.00017274,2]
[399591423,1766525685985,-1294.42,0.00017286,2]
[399591424,1766525686001,-600.0,0.00017317,2]
[399591425,1766525686011,-427.0,0.00017352,2]
[399591426,1766525686021,-750.0,0.00017368,2]
[399591427,1766525686031,-427.0,0.00017395,2]
[399591428,1766525686040,-427.0,0.00017448,2]
[399591429,1766525686050,-710.7091388,0.00017476,2]
[399591430,1766525686060,-244.3415156,0.00017477,2]
[399591431,1766525686070,-427.0,0.00017504,2]
[399591432,1766525686080,-500.0,0.00017548,2]
[399591433,1766525686091,-427.0,0.00017556,2]
[399591434,1766525686102,-427.0,0.0001763,2]
[399591435,1766525686112,-427.0,0.00017638,2]
[399591436,1766525686122,-300.0,0.00017677,2]
[399591437,1766525686132,-666.0,0.00017677,2]
[399591438,1766525686142,-427.0,0.00017703,2]
[399591439,1766525686152,-427.0,0.00017746,2]
[399591440,1766525686162,-427.0,0.00017748,2]
[399591441,1766525686173,-500.0,0.00017822,2]
[399591442,1766525686182,-600.0,0.00017865,2]
[399591443,1766525686192,-427.0,0.00017889,2]
[399591444,1766525686203,-427.0,0.00017932,2]
[399591445,1766525686214,-427.0,0.00017946,2]
[399591446,1766525686225,-587.0,0.00017995,2]
[399591447,1766525686234,-427.0,0.00018027,2]
[399591448,1766525686244,-427.0,0.00018069,2]
[399591449,1766525686255,-500.0,0.00018096,2]
[399591450,1766525686265,-427.0,0.00018131,2]
[399591451,1766525686275,-427.0,0.00018152,2]
[399591452,1766525686285,-2351.0,0.00018178,2]
[399591453,1766525686296,-500.0,0.0001837,2]
[399591454,1766525686788,-600.0,0.00018413,2]
[399591455,1766525686803,-427.0,0.00018489,2]
[399591456,1766525686815,-427.0,0.00018608,2]
[399591457,1766525686825,-427.0,0.00018642,2]
[399591458,1766525686836,-500.0,0.00018644,2]
[399591459,1766525686847,-427.0,0.00018652,2]
[399591460,1766525686857,-361.29,0.00018704,2]
[399591461,1766525686867,-427.0,0.00018708,2]
[399591462,1766525686877,-150.94,0.000188,2]
[399591463,1766525686887,-150.94,0.000188,2]
[399591464,1766525686897,-150.94,0.000188,2]
[399591465,1766525686907,-150.94,0.000188,2]
[399591466,1766525686917,-150.94,0.000188,2]
[399591467,1766525686927,-150.94,0.000188,2]
[399591468,1766525686942,-150.94,0.000188,2]
[399591469,1766525686951,-150.94,0.000188,2]
[399591470,1766525686962,-150.94,0.000188,2]
[399591471,1766525686972,-150.94,0.000188,2]
[399591472,1766525686981,-150.94,0.000188,2]
[399591473,1766525686992,-150.94,0.000188,2]
[399591474,1766525687002,-150.94,0.000188,2]
[399591475,1766525687012,-150.94,0.000188,2]
[399591476,1766525687023,-150.94,0.000188,2]
[399591477,1766525687033,-150.94,0.000188,2]
[399591478,1766525687043,-150.94,0.000188,2]
[399591479,1766525687053,-150.94,0.000188,2]
[399591480,1766525687063,-150.94,0.000188,2]
[399591481,1766525687073,-150.94,0.000188,2]
[399591482,1766525687083,-150.94,0.000188,2]
[399591483,1766525687093,-150.94,0.000188,2]
[399591484,1766525687104,-150.94,0.000188,2]
[399591485,1766525687114,-150.94,0.000188,2]
[399591486,1766525687124,-150.94,0.000188,2]
[399591487,1766525687134,-150.94,0.000188,2]
[399591488,1766525687144,-150.94,0.000188,2]
[399591489,1766525687155,-150.94,0.000188,2]
[399591490,1766525687165,-150.94,0.000188,2]
[399591491,1766525687175,-150.94,0.000188,2]
[399591492,1766525687186,-150.94,0.000188,2]
[399591493,1766525687196,-150.94,0.000188,2]
[399591494,1766525687206,-150.94,0.000188,2]
[399591495,1766525687216,-331.61042727,0.00018811,2]
[399591496,1766525687227,-164.53627288,0.000189,2]
[399591497,1766525687238,-301.91831985,0.00018918,2]
[399591498,1766525687248,-600.0,0.00018961,2]
[399591499,1766525687258,-500.0,0.00018999,2]
[399591500,1766525687269,-300.0,0.00019,2]
[399591501,1766525687279,-178.89073245,0.00019,2]
[399591502,1766525687290,-224.34,0.00019054,2]
[399591503,1766525687304,-323.0,0.00019085,2]
[399591504,1766525687314,-175.03195294,0.0001917,2]
[399591505,1766525687325,-500.0,0.00019316,2]
[399591506,1766525687336,-500.0,0.00019316,2]
[399591507,1766525687345,-500.0,0.00019508,2]
[399591508,1766525687356,-2732.0,0.00019995,2]
[399591509,1766525687366,-150.0,0.0002,20]
[399591510,1766525687376,-160.43471364,0.0002,2]
[399591511,1766525687386,-300.0,0.0002033,2]
[399591512,1766525687396,-666.0,0.0002033,2]
[399591513,1766525687406,-151.87941199,0.0002076,2]
[399591514,1766525687416,-323.0,0.00020895,2]
[399591515,1766525687427,-150.94,0.00020951,2]
[399591516,1766525687437,-150.94,0.00020951,2]
[399591517,1766525687448,-150.94,0.00020951,2]
[399591518,1766525687458,-150.94,0.00020951,2]
[399591519,1766525687468,-150.94,0.00020951,2]
[399591520,1766525687479,-300.0,0.0002096,2]